[Event "*** SCC Grand Prix: Titled Tuesday Blitz"]
[Site "Chess.com"]
[Date "2020.09.08"]
[Round "3"]
[White "francyIM"]
[Black "valeriocarnicelli"]
[Result "1-0"]
[WhiteElo "2710"]
[BlackElo "2477"]
[TimeControl "180+1"]
[EndTime "10:30:02 PDT"]
[Termination "francyIM won by resignation"]

1. d4 {[%clk 0:03:00.9]} 1... d5 {[%clk 0:02:59.7]} 2. c4 {[%clk 0:03:00.4]}
2... c6 {[%clk 0:02:59.9]} 3. Nf3 {[%clk 0:03:00]} 3... Nf6 {[%clk 0:03:00.2]}
4. e3 {[%clk 0:03:00.2]} 4... e6 {[%clk 0:03:00.1]} 5. Nbd2 {[%clk 0:02:57.7]}
5... Nbd7 {[%clk 0:02:59.7]} 6. b3 {[%clk 0:02:58]} 6... Ne4 {[%clk 0:02:54.5]}
7. Bd3 {[%clk 0:02:52.2]} 7... f5 {[%clk 0:02:53.7]} 8. O-O {[%clk 0:02:52]}
8... Bd6 {[%clk 0:02:53.1]} 9. Bb2 {[%clk 0:02:51.9]} 9... O-O {[%clk
0:02:52.4]} 10. Ne5 {[%clk 0:02:52.1]} 10... Rf6 {[%clk 0:02:45.2]} 11. f3
{[%clk 0:02:50.7]} 11... Nxd2 {[%clk 0:02:44.7]} 12. Qxd2 {[%clk 0:02:51.6]}
12... Rh6 {[%clk 0:02:42.1]} 13. cxd5 {[%clk 0:02:50.9]} 13... exd5 {[%clk
0:02:29.7]} 14. Qc2 {[%clk 0:02:28.2]} 14... Qg5 {[%clk 0:01:35.1]} 15. f4
{[%clk 0:02:26.9]} 15... Qh5 {[%clk 0:01:34.7]} 16. h3 {[%clk 0:02:15.5]} 16...
Nf6 {[%clk 0:01:34.7]} 17. Rf3 {[%clk 0:01:52.2]} 17... Ne4 {[%clk 0:01:33.3]}
18. Bxe4 {[%clk 0:01:51.2]} 18... fxe4 {[%clk 0:01:33.4]} 19. Rg3 {[%clk
0:01:51.6]} 19... Qe8 {[%clk 0:01:08.1]} 20. Qf2 {[%clk 0:01:50.3]} 20... Bxe5
{[%clk 0:00:51.1]} 21. dxe5 {[%clk 0:01:42.4]} 21... Rg6 {[%clk 0:00:47.7]} 22.
Rf1 {[%clk 0:01:41.7]} 22... Bf5 {[%clk 0:00:44.1]} 23. Kh2 {[%clk 0:01:38.4]}
23... h5 {[%clk 0:00:42]} 24. Rxg6 {[%clk 0:01:16.1]} 24... Qxg6 {[%clk
0:00:42.9]} 25. Qh4 {[%clk 0:01:16.5]} 25... Kf7 {[%clk 0:00:20.8]} 26. Rg1
{[%clk 0:01:15.7]} 26... Qh7 {[%clk 0:00:13]} 27. g4 {[%clk 0:01:07.9]} 27...
hxg4 {[%clk 0:00:12.6]} 28. Qxh7 {[%clk 0:01:07.4]} 28... Bxh7 {[%clk
0:00:13.5]} 29. hxg4 {[%clk 0:01:07.1]} 29... Rc8 {[%clk 0:00:11.6]} 30. Kg3
{[%clk 0:01:01.6]} 30... c5 {[%clk 0:00:10.7]} 31. f5 {[%clk 0:01:01.4]} 31...
c4 {[%clk 0:00:08.2]} 32. e6+ {[%clk 0:01:01.1]} 32... Kf8 {[%clk 0:00:07.2]}
33. Bd4 {[%clk 0:00:56.1]} 33... cxb3 {[%clk 0:00:06.2]} 34. axb3 {[%clk
0:00:57]} 34... a6 {[%clk 0:00:06]} 35. Kf4 {[%clk 0:00:56.8]} 35... b5 {[%clk
0:00:04.5]} 36. Rh1 {[%clk 0:00:56.6]} 36... Bg8 {[%clk 0:00:04.5]} 37. Ke5
{[%clk 0:00:54.8]} 37... a5 {[%clk 0:00:05]} 38. Ra1 {[%clk 0:00:50.9]} 38...
Ra8 {[%clk 0:00:04.5]} 39. g5 {[%clk 0:00:48.4]} 39... a4 {[%clk 0:00:03.1]} 40.
b4 {[%clk 0:00:46.1]} 40... a3 {[%clk 0:00:02.2]} 41. f6 {[%clk 0:00:44]} 41...
gxf6+ {[%clk 0:00:02.2]} 42. gxf6 {[%clk 0:00:44.9]} 42... a2 {[%clk 0:00:01.8]}
43. Bc5+ {[%clk 0:00:42.3]} 43... Ke8 {[%clk 0:00:01.8]} 44. Kxd5 {[%clk
0:00:42.2]} 44... Ra6 {[%clk 0:00:01.5]} 45. f7+ {[%clk 0:00:42.2]} 45... Bxf7
{[%clk 0:00:02.1]} 46. exf7+ {[%clk 0:00:43.1]} 46... Kxf7 {[%clk 0:00:03]} 47.
Kxe4 {[%clk 0:00:43.2]} 47... Ke6 {[%clk 0:00:03.2]} 48. Kd3 {[%clk 0:00:43.2]}
48... Ra3+ {[%clk 0:00:02.8]} 49. Kc2 {[%clk 0:00:43]} 49... Kd5 {[%clk
0:00:03.5]} 50. Kb2 {[%clk 0:00:43.3]} 50... Rd3 {[%clk 0:00:03.5]} 51. Rxa2
{[%clk 0:00:43.2]} 51... Kc4 {[%clk 0:00:04.2]} 52. Kc1 {[%clk 0:00:43]} 52...
Kb3 {[%clk 0:00:04.1]} 53. Rb2+ {[%clk 0:00:42.2]} 53... Kc3 {[%clk 0:00:04.7]}
54. Rc2+ {[%clk 0:00:38.5]} 54... Kb3 {[%clk 0:00:05.2]} 55. Rd2 {[%clk
0:00:38.8]} 55... Rc3+ {[%clk 0:00:05.4]} 56. Kd1 {[%clk 0:00:39.3]} 56... Rc4
{[%clk 0:00:05.7]} 57. Ke2 {[%clk 0:00:39.2]} 57... Kc3 {[%clk 0:00:05.4]} 58.
Rd4 {[%clk 0:00:38.1]} 1-0

[Event "*** SCC Grand Prix: Titled Tuesday Blitz"]
[Site "Chess.com"]
[Date "2020.09.08"]
[Round "3"]
[White "THE_PLAYER6"]
[Black "BillieKimbah"]
[Result "0-1"]
[WhiteElo "2458"]
[BlackElo "2907"]
[TimeControl "180+1"]
[EndTime "10:30:02 PDT"]
[Termination "BillieKimbah won on time"]

1. c4 {[%clk 0:03:00.9]} 1... Nf6 {[%clk 0:02:58.3]} 2. Nc3 {[%clk 0:02:55.4]}
2... g6 {[%clk 0:02:58.4]} 3. e4 {[%clk 0:02:53.9]} 3... d6 {[%clk 0:02:58.7]}
4. d4 {[%clk 0:02:53.9]} 4... Bg7 {[%clk 0:02:59]} 5. h3 {[%clk 0:02:54.2]} 5...
O-O {[%clk 0:02:58.8]} 6. Bg5 {[%clk 0:02:51.5]} 6... Na6 {[%clk 0:02:56.9]} 7.
Nf3 {[%clk 0:02:47.7]} 7... e5 {[%clk 0:02:45.1]} 8. d5 {[%clk 0:02:44.5]} 8...
h6 {[%clk 0:02:39.3]} 9. Be3 {[%clk 0:02:42.7]} 9... Nc5 {[%clk 0:02:39.3]} 10.
Nd2 {[%clk 0:02:43.1]} 10... a5 {[%clk 0:02:38.2]} 11. g4 {[%clk 0:02:39.8]}
11... c6 {[%clk 0:02:34.6]} 12. Be2 {[%clk 0:02:33.3]} 12... Nfd7 {[%clk
0:02:30.4]} 13. h4 {[%clk 0:02:29.7]} 13... a4 {[%clk 0:02:29.6]} 14. Qc2 {[%clk
0:02:22]} 14... Qa5 {[%clk 0:02:20.1]} 15. h5 {[%clk 0:02:14.2]} 15... f5 {[%clk
0:02:11.6]} 16. gxf5 {[%clk 0:01:59.7]} 16... gxf5 {[%clk 0:02:12.5]} 17. exf5
{[%clk 0:01:57.9]} 17... a3 {[%clk 0:02:09.3]} 18. b4 {[%clk 0:01:50.8]} 18...
Qxb4 {[%clk 0:02:08.4]} 19. Rb1 {[%clk 0:01:49.1]} 19... Qa5 {[%clk 0:02:08.6]}
20. Rg1 {[%clk 0:01:41.7]} 20... Kh8 {[%clk 0:01:57.1]} 21. f6 {[%clk
0:01:19.8]} 21... Rxf6 {[%clk 0:01:52.1]} 22. Kf1 {[%clk 0:01:14.5]} 22... Nf8
{[%clk 0:01:45]} 23. Nde4 {[%clk 0:01:02.7]} 23... Bh3+ {[%clk 0:01:43.8]} 24.
Rg2 {[%clk 0:00:53.1]} 24... Nxe4 {[%clk 0:01:42.7]} 25. Nxe4 {[%clk 0:00:52.1]}
25... Qc7 {[%clk 0:01:09]} 26. Nxf6 {[%clk 0:00:46.9]} 26... Bxf6 {[%clk
0:01:09.9]} 27. Bxh6 {[%clk 0:00:41.2]} 27... cxd5 {[%clk 0:01:07.1]} 28. Bxf8
{[%clk 0:00:30.5]} 28... Rxf8 {[%clk 0:01:06.2]} 29. Qg6 {[%clk 0:00:27.5]}
29... Bxg2+ {[%clk 0:01:04.5]} 30. Qxg2 {[%clk 0:00:27.1]} 30... Rg8 {[%clk
0:00:58]} 31. Qxd5 {[%clk 0:00:26.4]} 31... Qg7 {[%clk 0:00:58.7]} 32. Ke1
{[%clk 0:00:23.5]} 32... Bh4 {[%clk 0:00:46.4]} 33. Rxb7 {[%clk 0:00:20.3]}
33... Qg1+ {[%clk 0:00:45.3]} 34. Kd2 {[%clk 0:00:20]} 34... Qxf2 {[%clk
0:00:44.5]} 35. Qe4 {[%clk 0:00:15.9]} 35... Qf4+ {[%clk 0:00:16.5]} 36. Qxf4
{[%clk 0:00:16.2]} 36... exf4 {[%clk 0:00:17.4]} 37. h6 {[%clk 0:00:11.9]} 37...
Rg2 {[%clk 0:00:16.9]} 38. Kd3 {[%clk 0:00:12]} 38... Rg3+ {[%clk 0:00:14.6]}
39. Kd2 {[%clk 0:00:08.8]} 39... f3 {[%clk 0:00:14.9]} 40. Bf1 {[%clk
0:00:09.3]} 40... Bg5+ {[%clk 0:00:14.1]} 41. Ke1 {[%clk 0:00:09.1]} 41... Be3
{[%clk 0:00:13.7]} 42. Re7 {[%clk 0:00:07.2]} 42... Bc5 {[%clk 0:00:12.1]} 43.
Bd3 {[%clk 0:00:06]} 43... f2+ {[%clk 0:00:09.9]} 44. Ke2 {[%clk 0:00:04.9]}
44... Rxd3 {[%clk 0:00:08.7]} 45. Rf7 {[%clk 0:00:01.6]} 45... Rc3 {[%clk
0:00:08.2]} 0-1

[Event "*** SCC Grand Prix: Titled Tuesday Blitz"]
[Site "Chess.com"]
[Date "2020.09.08"]
[Round "3"]
[White "maximnovik"]
[Black "Abdimalik_Abdisalimov"]
[Result "1-0"]
[WhiteElo "2518"]
[BlackElo "2745"]
[TimeControl "180+1"]
[EndTime "10:30:03 PDT"]
[Termination "maximnovik won on time"]

1. c4 {[%clk 0:02:50.2]} 1... g6 {[%clk 0:02:40.9]} 2. Nc3 {[%clk 0:02:49.4]}
2... Bg7 {[%clk 0:02:41.3]} 3. d4 {[%clk 0:02:49.5]} 3... d6 {[%clk 0:02:41.6]}
4. g3 {[%clk 0:02:49.6]} 4... Nf6 {[%clk 0:02:42]} 5. Bg2 {[%clk 0:02:49.5]}
5... O-O {[%clk 0:02:42.9]} 6. Nf3 {[%clk 0:02:49.9]} 6... Nc6 {[%clk
0:02:43.3]} 7. O-O {[%clk 0:02:49.9]} 7... e5 {[%clk 0:02:43.7]} 8. d5 {[%clk
0:02:48.7]} 8... Nb8 {[%clk 0:02:43.7]} 9. e4 {[%clk 0:02:49]} 9... a5 {[%clk
0:02:44.1]} 10. Rb1 {[%clk 0:02:48.3]} 10... Na6 {[%clk 0:02:43.6]} 11. Be3
{[%clk 0:02:38.4]} 11... Ng4 {[%clk 0:02:38.4]} 12. Bg5 {[%clk 0:02:35.5]} 12...
f6 {[%clk 0:02:38.1]} 13. Bd2 {[%clk 0:02:35.1]} 13... f5 {[%clk 0:02:35.7]} 14.
Ng5 {[%clk 0:02:17.3]} 14... Nc5 {[%clk 0:02:14.5]} 15. exf5 {[%clk 0:02:07.8]}
15... gxf5 {[%clk 0:02:10.4]} 16. h3 {[%clk 0:02:05.4]} 16... Nf6 {[%clk
0:02:04.6]} 17. Be3 {[%clk 0:01:57.7]} 17... h6 {[%clk 0:01:43.5]} 18. Bxc5
{[%clk 0:01:57.4]} 18... hxg5 {[%clk 0:01:43.2]} 19. Be3 {[%clk 0:01:55.4]}
19... f4 {[%clk 0:01:41.5]} 20. Bd2 {[%clk 0:01:54]} 20... Bf5 {[%clk
0:01:39.8]} 21. Qe2 {[%clk 0:01:26.2]} 21... Qd7 {[%clk 0:01:12.4]} 22. g4
{[%clk 0:01:20.4]} 22... Bxb1 {[%clk 0:01:03.6]} 23. Rxb1 {[%clk 0:01:20.6]}
23... e4 {[%clk 0:00:18.2]} 24. Nxe4 {[%clk 0:01:18.5]} 24... Rae8 {[%clk
0:00:17]} 25. Qd3 {[%clk 0:01:15]} 25... Nxe4 {[%clk 0:00:08.2]} 26. Bxe4 {[%clk
0:01:14.9]} 26... Be5 {[%clk 0:00:06.5]} 27. f3 {[%clk 0:01:07.3]} 27... b6
{[%clk 0:00:06]} 28. Kg2 {[%clk 0:01:07]} 28... Kg7 {[%clk 0:00:06.3]} 29. b3
{[%clk 0:01:06.9]} 29... Qe7 {[%clk 0:00:05.3]} 30. Rh1 {[%clk 0:01:06.3]} 30...
Rh8 {[%clk 0:00:05]} 31. Be1 {[%clk 0:01:05.8]} 31... Qf6 {[%clk 0:00:04.8]} 32.
Bf2 {[%clk 0:01:05.9]} 32... Rh6 {[%clk 0:00:04.8]} 33. a3 {[%clk 0:00:58.4]}
33... Reh8 {[%clk 0:00:05.2]} 34. b4 {[%clk 0:00:58.2]} 34... axb4 {[%clk
0:00:06.1]} 35. axb4 {[%clk 0:00:58.1]} 35... Ra8 {[%clk 0:00:07]} 36. c5 {[%clk
0:00:57.1]} 36... bxc5 {[%clk 0:00:07]} 37. bxc5 {[%clk 0:00:56.7]} 37... Ra2
{[%clk 0:00:07.4]} 38. Re1 {[%clk 0:00:52.8]} 38... Bd4 {[%clk 0:00:06.6]} 39.
Re2 {[%clk 0:00:52.5]} 39... Rxe2 {[%clk 0:00:06.4]} 40. Qxe2 {[%clk 0:00:52.1]}
40... Bxc5 {[%clk 0:00:06.6]} 41. Bxc5 {[%clk 0:00:50.1]} 41... dxc5 {[%clk
0:00:07.5]} 42. Qb5 {[%clk 0:00:49.3]} 42... Qe7 {[%clk 0:00:05.8]} 43. Qb2+
{[%clk 0:00:37.8]} 43... Kf7 {[%clk 0:00:04.4]} 44. Bf5 {[%clk 0:00:34.3]} 44...
Rb6 {[%clk 0:00:03.1]} 45. Be6+ {[%clk 0:00:32.9]} 45... Rxe6 {[%clk 0:00:02.3]}
46. dxe6+ {[%clk 0:00:32.4]} 46... Qxe6 {[%clk 0:00:03.2]} 47. h4 {[%clk
0:00:32.1]} 47... gxh4 {[%clk 0:00:03.1]} 48. Kh3 {[%clk 0:00:31.1]} 48... c4
{[%clk 0:00:01.9]} 49. Qd4 {[%clk 0:00:28.1]} 49... Ke8 {[%clk 0:00:01.9]} 50.
Qxf4 {[%clk 0:00:23.5]} 1-0

[Event "*** SCC Grand Prix: Titled Tuesday Blitz"]
[Site "Chess.com"]
[Date "2020.09.08"]
[Round "3"]
[White "Hasangatin_Ramil"]
[Black "gui_borba"]
[Result "1/2-1/2"]
[WhiteElo "2581"]
[BlackElo "2393"]
[TimeControl "180+1"]
[EndTime "10:30:04 PDT"]
[Termination "Game drawn - insufficient material"]

1. e4 {[%clk 0:03:00.9]} 1... c6 {[%clk 0:03:00.2]} 2. d4 {[%clk 0:02:59.7]}
2... d5 {[%clk 0:03:01.1]} 3. Nd2 {[%clk 0:03:00.2]} 3... dxe4 {[%clk
0:03:00.6]} 4. Nxe4 {[%clk 0:03:01.1]} 4... Nf6 {[%clk 0:03:01.4]} 5. Nxf6+
{[%clk 0:03:01.3]} 5... exf6 {[%clk 0:03:02.3]} 6. c3 {[%clk 0:03:01.9]} 6...
Bd6 {[%clk 0:03:00.8]} 7. Bd3 {[%clk 0:03:02.8]} 7... O-O {[%clk 0:03:01.3]} 8.
Qc2 {[%clk 0:03:03.1]} 8... Re8+ {[%clk 0:03:02.2]} 9. Ne2 {[%clk 0:03:03.3]}
9... h5 {[%clk 0:03:02.8]} 10. O-O {[%clk 0:03:03.3]} 10... Nd7 {[%clk
0:03:03.3]} 11. h3 {[%clk 0:03:01.7]} 11... h4 {[%clk 0:03:03.6]} 12. Re1 {[%clk
0:03:00.4]} 12... Nf8 {[%clk 0:03:03.8]} 13. Be3 {[%clk 0:02:59.5]} 13... Be6
{[%clk 0:02:53.5]} 14. Bf4 {[%clk 0:02:58]} 14... Qc7 {[%clk 0:02:51.8]} 15.
Bxd6 {[%clk 0:02:56.5]} 15... Qxd6 {[%clk 0:02:52.7]} 16. Qd2 {[%clk 0:02:55.4]}
16... Ng6 {[%clk 0:02:45.9]} 17. Bxg6 {[%clk 0:02:53.9]} 17... fxg6 {[%clk
0:02:45.1]} 18. Qf4 {[%clk 0:02:54.4]} 18... Qxf4 {[%clk 0:02:42.2]} 19. Nxf4
{[%clk 0:02:55.3]} 19... Bf7 {[%clk 0:02:42.9]} 20. a3 {[%clk 0:02:41.8]} 20...
Kf8 {[%clk 0:02:38.9]} 21. Nd3 {[%clk 0:02:41.6]} 21... b6 {[%clk 0:02:26.1]}
22. Rxe8+ {[%clk 0:02:40.3]} 22... Rxe8 {[%clk 0:02:25.3]} 23. Re1 {[%clk
0:02:41.2]} 23... Rxe1+ {[%clk 0:02:24.4]} 24. Nxe1 {[%clk 0:02:41]} 24... Bc4
{[%clk 0:02:23.9]} 25. Nf3 {[%clk 0:02:40.3]} 25... g5 {[%clk 0:02:21.6]} 26.
Nd2 {[%clk 0:02:40.6]} 26... Bd5 {[%clk 0:02:20.3]} 27. c4 {[%clk 0:02:40.6]}
27... Be6 {[%clk 0:02:20.8]} 28. Kf1 {[%clk 0:02:40]} 28... Ke7 {[%clk
0:02:20.9]} 29. Ke2 {[%clk 0:02:38.4]} 29... a5 {[%clk 0:02:20.3]} 30. b4 {[%clk
0:02:37.2]} 30... axb4 {[%clk 0:02:17.8]} 31. axb4 {[%clk 0:02:38.1]} 31... b5
{[%clk 0:02:13.8]} 32. d5 {[%clk 0:02:30.8]} 32... Bd7 {[%clk 0:02:01.2]} 33.
cxb5 {[%clk 0:02:16.7]} 33... cxb5 {[%clk 0:01:59.7]} 34. Ke3 {[%clk 0:02:16.1]}
34... Kd6 {[%clk 0:01:59.5]} 35. Kd4 {[%clk 0:02:16.4]} 35... g4 {[%clk
0:01:51.6]} 36. Ne4+ {[%clk 0:02:15.6]} 36... Kc7 {[%clk 0:01:37.9]} 37. hxg4
{[%clk 0:02:12.4]} 37... Bxg4 {[%clk 0:01:38.8]} 38. Kc5 {[%clk 0:02:07.1]}
38... Bd7 {[%clk 0:01:37.7]} 39. Nc3 {[%clk 0:01:53.7]} 39... g5 {[%clk
0:01:36.5]} 40. Kd4 {[%clk 0:00:55.5]} 40... g4 {[%clk 0:01:30]} 41. Ne4 {[%clk
0:00:40.6]} 41... h3 {[%clk 0:01:25]} 42. gxh3 {[%clk 0:00:39.4]} 42... gxh3
{[%clk 0:01:25.9]} 43. Ke3 {[%clk 0:00:32.5]} 43... h2 {[%clk 0:01:23.5]} 44.
Ng3 {[%clk 0:00:32.5]} 44... Kd6 {[%clk 0:01:23.8]} 45. Kf3 {[%clk 0:00:29.6]}
45... Kxd5 {[%clk 0:01:06.5]} 46. Kg2 {[%clk 0:00:29.3]} 46... Kc4 {[%clk
0:01:07.1]} 47. Kxh2 {[%clk 0:00:29]} 47... Kxb4 {[%clk 0:01:07.2]} 48. Kg2
{[%clk 0:00:25.4]} 48... Kc4 {[%clk 0:01:04.5]} 49. Kf3 {[%clk 0:00:24.2]} 49...
b4 {[%clk 0:01:02.8]} 50. Ke2 {[%clk 0:00:24.4]} 50... Kb3 {[%clk 0:01:01.6]}
51. Ne4 {[%clk 0:00:18.7]} 51... Ka2 {[%clk 0:00:51.9]} 52. Nxf6 {[%clk
0:00:15.9]} 52... Bc6 {[%clk 0:00:47.1]} 53. Ng4 {[%clk 0:00:10.4]} 53... b3
{[%clk 0:00:44.9]} 54. Ne3 {[%clk 0:00:10.4]} 54... b2 {[%clk 0:00:44.2]} 55.
Nd1 {[%clk 0:00:10.2]} 55... Bb5+ {[%clk 0:00:34.5]} 56. Kd2 {[%clk 0:00:09.2]}
56... b1=Q {[%clk 0:00:29.3]} 57. Nc3+ {[%clk 0:00:08.8]} 57... Kb2 {[%clk
0:00:30]} 58. Nxb1 {[%clk 0:00:09.6]} 58... Kxb1 {[%clk 0:00:30.9]} 59. Ke3
{[%clk 0:00:09.9]} 59... Bd7 {[%clk 0:00:29.4]} 60. f4 {[%clk 0:00:10.8]} 60...
Kc2 {[%clk 0:00:29.2]} 61. f5 {[%clk 0:00:11.7]} 61... Bxf5 {[%clk 0:00:29.3]}
1/2-1/2

[Event "*** SCC Grand Prix: Titled Tuesday Blitz"]
[Site "Chess.com"]
[Date "2020.09.08"]
[Round "3"]
[White "SaraciNderim"]
[Black "Andrii_Prydun"]
[Result "1-0"]
[WhiteElo "2668"]
[BlackElo "2407"]
[TimeControl "180+1"]
[EndTime "10:30:05 PDT"]
[Termination "SaraciNderim won on time"]

1. d4 {[%clk 0:03:00.9]} 1... d5 {[%clk 0:03:00.4]} 2. Nf3 {[%clk 0:02:58.3]}
2... c6 {[%clk 0:03:00.6]} 3. Bf4 {[%clk 0:02:58.2]} 3... Nf6 {[%clk 0:03:00.8]}
4. e3 {[%clk 0:02:57.6]} 4... e6 {[%clk 0:02:58.4]} 5. c4 {[%clk 0:02:57.7]}
5... Nbd7 {[%clk 0:02:57.8]} 6. Nc3 {[%clk 0:02:57.6]} 6... Be7 {[%clk
0:02:57.6]} 7. h3 {[%clk 0:02:57.9]} 7... O-O {[%clk 0:02:57.6]} 8. Bd3 {[%clk
0:02:58.3]} 8... b6 {[%clk 0:02:57.2]} 9. O-O {[%clk 0:02:58.3]} 9... Bb7 {[%clk
0:02:57.2]} 10. Rc1 {[%clk 0:02:57.7]} 10... c5 {[%clk 0:02:57.4]} 11. cxd5
{[%clk 0:02:57.1]} 11... Nxd5 {[%clk 0:02:56.8]} 12. Nxd5 {[%clk 0:02:55.4]}
12... Bxd5 {[%clk 0:02:56.9]} 13. b3 {[%clk 0:02:52.8]} 13... cxd4 {[%clk
0:02:55.7]} 14. exd4 {[%clk 0:02:44.4]} 14... Rc8 {[%clk 0:02:51.4]} 15. Qe2
{[%clk 0:02:40.4]} 15... Ba3 {[%clk 0:02:50.3]} 16. Rc2 {[%clk 0:02:29.1]} 16...
Rxc2 {[%clk 0:02:46.3]} 17. Bxc2 {[%clk 0:02:23.6]} 17... h6 {[%clk 0:02:37.6]}
18. Bd3 {[%clk 0:02:17.7]} 18... Qa8 {[%clk 0:02:36.9]} 19. Bc1 {[%clk
0:02:08.4]} 19... Bd6 {[%clk 0:02:35.7]} 20. Be3 {[%clk 0:02:01.9]} 20... Bxf3
{[%clk 0:02:33.7]} 21. Qxf3 {[%clk 0:01:58.8]} 21... Qxf3 {[%clk 0:02:33.6]} 22.
gxf3 {[%clk 0:01:59.7]} 22... Rc8 {[%clk 0:02:33.5]} 23. Bc4 {[%clk 0:01:56.4]}
23... Nf6 {[%clk 0:02:28.3]} 24. a4 {[%clk 0:01:53.5]} 24... Nd5 {[%clk
0:02:21.1]} 25. Rc1 {[%clk 0:01:51.7]} 25... Kf8 {[%clk 0:01:20.7]} 26. Kf1
{[%clk 0:01:48.9]} 26... Ke7 {[%clk 0:01:19.1]} 27. Ke2 {[%clk 0:01:47.9]} 27...
Kf6 {[%clk 0:01:15.9]} 28. Kd3 {[%clk 0:01:26.5]} 28... g5 {[%clk 0:00:50.4]}
29. Rh1 {[%clk 0:01:06.1]} 29... Nf4+ {[%clk 0:00:37.9]} 30. Kd2 {[%clk
0:00:58.4]} 30... Ng6 {[%clk 0:00:36.3]} 31. Ke2 {[%clk 0:00:55.9]} 31... Bf4
{[%clk 0:00:36.2]} 32. Kd3 {[%clk 0:00:54.6]} 32... Kf5 {[%clk 0:00:33.5]} 33.
Ke2 {[%clk 0:00:51.2]} 33... Rc7 {[%clk 0:00:33.4]} 34. Bd3+ {[%clk 0:00:50.5]}
34... Kf6 {[%clk 0:00:33.2]} 35. Bxg6 {[%clk 0:00:43.4]} 35... Bxe3 {[%clk
0:00:32.9]} 36. fxe3 {[%clk 0:00:41.9]} 36... Kxg6 {[%clk 0:00:32.1]} 37. Kd3
{[%clk 0:00:42.1]} 37... Kh5 {[%clk 0:00:31.3]} 38. e4 {[%clk 0:00:40]} 38...
Kh4 {[%clk 0:00:28.4]} 39. d5 {[%clk 0:00:38.4]} 39... exd5 {[%clk 0:00:27.9]}
40. exd5 {[%clk 0:00:39.3]} 40... Kg3 {[%clk 0:00:28.2]} 41. Kd4 {[%clk
0:00:34.2]} 41... Kxf3 {[%clk 0:00:25.9]} 42. d6 {[%clk 0:00:33.8]} 42... Rd7
{[%clk 0:00:18]} 43. Ke5 {[%clk 0:00:33.4]} 43... Kg2 {[%clk 0:00:14.8]} 44. Rc1
{[%clk 0:00:32.9]} 44... Kxh3 {[%clk 0:00:13.7]} 45. Rc7 {[%clk 0:00:32.6]}
45... Rd8 {[%clk 0:00:12.7]} 46. Rxf7 {[%clk 0:00:32.4]} 46... g4 {[%clk
0:00:12.8]} 47. Rh7 {[%clk 0:00:31.9]} 47... g3 {[%clk 0:00:09.5]} 48. Rxh6+
{[%clk 0:00:31.9]} 48... Kg2 {[%clk 0:00:09.9]} 49. Ke6 {[%clk 0:00:30]} 49...
Rg8 {[%clk 0:00:09.5]} 50. d7 {[%clk 0:00:27.5]} 50... Kf2 {[%clk 0:00:08.4]}
51. Rf6+ {[%clk 0:00:25.4]} 51... Ke1 {[%clk 0:00:07.4]} 52. Kf7 {[%clk
0:00:25.6]} 52... Rd8 {[%clk 0:00:07.1]} 53. Ke7 {[%clk 0:00:24.7]} 53... g2
{[%clk 0:00:03]} 54. Rg6 {[%clk 0:00:22.7]} 54... Rxd7+ {[%clk 0:00:01.3]} 55.
Kxd7 {[%clk 0:00:22.5]} 55... Kf2 {[%clk 0:00:01.7]} 56. Kc6 {[%clk 0:00:22.4]}
1-0

[Event "*** SCC Grand Prix: Titled Tuesday Blitz"]
[Site "Chess.com"]
[Date "2020.09.08"]
[Round "3"]
[White "mr_gustavo"]
[Black "Carnivoras"]
[Result "0-1"]
[WhiteElo "2260"]
[BlackElo "2642"]
[TimeControl "180+1"]
[EndTime "10:30:06 PDT"]
[Termination "Carnivoras won on time"]

1. d4 {[%clk 0:03:00.9]} 1... d5 {[%clk 0:02:58.9]} 2. c4 {[%clk 0:03:00.4]}
2... c6 {[%clk 0:02:59.4]} 3. cxd5 {[%clk 0:02:58.1]} 3... cxd5 {[%clk
0:02:59.2]} 4. Bf4 {[%clk 0:02:56.5]} 4... Nf6 {[%clk 0:02:59.4]} 5. Nc3 {[%clk
0:02:53.6]} 5... Nc6 {[%clk 0:02:59.4]} 6. e3 {[%clk 0:02:53]} 6... e6 {[%clk
0:02:58.9]} 7. Bd3 {[%clk 0:02:52.4]} 7... Bd6 {[%clk 0:02:50.7]} 8. Bxd6 {[%clk
0:02:50.6]} 8... Qxd6 {[%clk 0:02:51.6]} 9. Nf3 {[%clk 0:02:47]} 9... O-O {[%clk
0:02:48.1]} 10. O-O {[%clk 0:02:46.3]} 10... a6 {[%clk 0:02:42.2]} 11. a3 {[%clk
0:02:44.7]} 11... b5 {[%clk 0:02:42]} 12. Rc1 {[%clk 0:02:41.8]} 12... Bb7
{[%clk 0:02:41.7]} 13. Bb1 {[%clk 0:02:35.9]} 13... Rfc8 {[%clk 0:02:38.9]} 14.
Qd3 {[%clk 0:02:30.8]} 14... Na5 {[%clk 0:02:32.3]} 15. Ne5 {[%clk 0:02:21.9]}
15... Nc4 {[%clk 0:02:22.2]} 16. Nxc4 {[%clk 0:02:18.1]} 16... bxc4 {[%clk
0:02:08.2]} 17. Qe2 {[%clk 0:02:15.6]} 17... Rab8 {[%clk 0:02:02.2]} 18. Rfd1
{[%clk 0:02:13.9]} 18... Ba8 {[%clk 0:01:44]} 19. Rd2 {[%clk 0:02:10.1]} 19...
e5 {[%clk 0:01:26.5]} 20. dxe5 {[%clk 0:02:07.2]} 20... Qxe5 {[%clk 0:01:27.4]}
21. Rd4 {[%clk 0:01:55]} 21... Re8 {[%clk 0:01:06.8]} 22. Qd2 {[%clk 0:01:47.2]}
22... Rb6 {[%clk 0:00:50.1]} 23. Na4 {[%clk 0:01:03.5]} 23... Rd6 {[%clk
0:00:35.5]} 24. Nc5 {[%clk 0:00:46.5]} 24... Rc8 {[%clk 0:00:28.4]} 25. b4
{[%clk 0:00:45.5]} 25... Nd7 {[%clk 0:00:18.2]} 26. Nd3 {[%clk 0:00:17.2]} 26...
Qe8 {[%clk 0:00:17]} 27. Nf4 {[%clk 0:00:17.6]} 27... Nb6 {[%clk 0:00:17]} 28.
Qc2 {[%clk 0:00:15.7]} 28... g6 {[%clk 0:00:17]} 29. h4 {[%clk 0:00:14.5]} 29...
Qa4 {[%clk 0:00:12.3]} 30. Qc3 {[%clk 0:00:10.5]} 30... Qd7 {[%clk 0:00:09.2]}
31. h5 {[%clk 0:00:09.9]} 31... Qe7 {[%clk 0:00:07]} 32. hxg6 {[%clk 0:00:09.7]}
32... hxg6 {[%clk 0:00:06.4]} 33. Bc2 {[%clk 0:00:08.5]} 33... Qf6 {[%clk
0:00:06.2]} 34. a4 {[%clk 0:00:08.1]} 34... Nd7 {[%clk 0:00:05.7]} 35. g3 {[%clk
0:00:04.6]} 35... Ne5 {[%clk 0:00:05.7]} 36. Kg2 {[%clk 0:00:04.5]} 36... Nc6
{[%clk 0:00:06]} 37. Rh1 {[%clk 0:00:02.2]} 37... Nxd4 {[%clk 0:00:05.9]} 38.
exd4 {[%clk 0:00:03.1]} 38... Re8 {[%clk 0:00:04.3]} 39. Qd2 {[%clk 0:00:02.8]}
39... Kg7 {[%clk 0:00:03.9]} 40. b5 {[%clk 0:00:02.8]} 40... axb5 {[%clk
0:00:03.4]} 41. axb5 {[%clk 0:00:03.7]} 41... Rh8 {[%clk 0:00:02.6]} 42. Rxh8
{[%clk 0:00:02.8]} 42... Kxh8 {[%clk 0:00:03.5]} 43. Qb4 {[%clk 0:00:02.6]}
43... Kg7 {[%clk 0:00:04]} 44. b6 {[%clk 0:00:02.6]} 44... Rxb6 {[%clk 0:00:04]}
45. Qc5 {[%clk 0:00:02.2]} 45... Rb2 {[%clk 0:00:04.9]} 46. Bd1 {[%clk
0:00:01.7]} 46... Rd2 {[%clk 0:00:04.8]} 47. Bf3 {[%clk 0:00:01.5]} 47... Qxd4
{[%clk 0:00:05.3]} 48. Qxd4+ {[%clk 0:00:01.1]} 48... Rxd4 {[%clk 0:00:06.2]}
0-1